[Event "Live Chess"]
[Site "Chess.com"]
[Date "2023.05.20"]
[Round "-"]
[White "siddu198"]
[Black "Conradical12"]
[Result "1-0"]
[WhiteElo "1629"]
[BlackElo "1537"]
[TimeControl "300"]
[EndTime "11:24:21 PDT"]
[Termination "siddu198 won by resignation"]

1. e4 {[%clk 0:04:58.5]} 1... e5 {[%clk 0:04:58.7]} 2. c3 {[%clk 0:04:55.4]}
2... Nc6 {[%clk 0:04:58.1]} 3. d4 {[%clk 0:04:55]} 3... exd4 {[%clk 0:04:57.2]}
4. cxd4 {[%clk 0:04:54.7]} 4... d5 {[%clk 0:04:56.8]} 5. e5 {[%clk 0:04:53]}
5... f6 {[%clk 0:04:55]} 6. Nf3 {[%clk 0:04:52.5]} 6... Bb4+ {[%clk 0:04:53.2]}
7. Nc3 {[%clk 0:04:51.1]} 7... Nge7 {[%clk 0:04:51.3]} 8. Bb5 {[%clk 0:04:49.8]}
8... O-O {[%clk 0:04:50]} 9. O-O {[%clk 0:04:45.9]} 9... fxe5 {[%clk 0:04:48.6]}
10. Nxe5 {[%clk 0:04:42.1]} 10... Nxe5 {[%clk 0:04:46.9]} 11. dxe5 {[%clk
0:04:42]} 11... d4 {[%clk 0:04:46.2]} 12. Ne4 {[%clk 0:04:36]} 12... Qd5 {[%clk
0:04:45.7]} 13. Nf6+ {[%clk 0:04:02.2]} 13... gxf6 {[%clk 0:04:43.4]} 14. a4
{[%clk 0:03:58.4]} 14... a6 {[%clk 0:04:36.1]} 15. exf6 {[%clk 0:03:49.1]} 15...
Ng6 {[%clk 0:04:33.6]} 16. Bd3 {[%clk 0:03:46.6]} 16... Nf4 {[%clk 0:04:28.6]}
17. Bxf4 {[%clk 0:03:41.9]} 17... Bd7 {[%clk 0:04:24.1]} 18. b3 {[%clk
0:03:39.1]} 18... Rf7 {[%clk 0:04:22.5]} 19. Bc4 {[%clk 0:03:37.6]} 19... Qe4
{[%clk 0:04:17]} 20. Bxf7+ {[%clk 0:03:35.6]} 20... Kxf7 {[%clk 0:04:14.6]} 21.
Qh5+ {[%clk 0:03:31.6]} 21... Ke6 {[%clk 0:04:08.8]} 22. Bg5 {[%clk 0:03:20.1]}
22... Bc6 {[%clk 0:04:05.3]} 23. Qh3+ {[%clk 0:03:15]} 23... Kf7 {[%clk
0:04:02.8]} 24. f3 {[%clk 0:03:06.3]} 24... Qe2 {[%clk 0:03:55.6]} 25. Qh5+
{[%clk 0:02:59.8]} 25... Ke6 {[%clk 0:03:53.7]} 26. Qh4 {[%clk 0:02:48]} 26...
Rg8 {[%clk 0:03:43.6]} 27. Rfe1 {[%clk 0:02:40.8]} 27... Bxe1 {[%clk 0:03:39.4]}
28. Rxe1 {[%clk 0:02:38.8]} 28... Qxe1+ {[%clk 0:03:38.7]} 29. Qxe1+ {[%clk
0:02:37.8]} 29... Kd5 {[%clk 0:03:38.6]} 30. Qe4+ {[%clk 0:02:35.2]} 30... Kc5
{[%clk 0:03:37.1]} 31. Qe7+ {[%clk 0:02:29.2]} 1-0

[Event "Live Chess"]
[Site "Chess.com"]
[Date "2023.05.20"]
[Round "-"]
[White "Chris_pea"]
[Black "JoeyCage"]
[Result "0-1"]
[WhiteElo "610"]
[BlackElo "2319"]
[TimeControl "300"]
[EndTime "11:24:22 PDT"]
[Termination "JoeyCage won on time"]

1. e4 {[%clk 0:04:56.6]} 1... c5 {[%clk 0:04:58.4]} 2. Nf3 {[%clk 0:04:53]} 2...
Nc6 {[%clk 0:04:57.6]} 3. c3 {[%clk 0:04:51.9]} 3... Nf6 {[%clk 0:04:55.9]} 4.
d4 {[%clk 0:04:47]} 4... cxd4 {[%clk 0:04:51.2]} 5. Bd3 {[%clk 0:04:30.2]} 5...
dxc3 {[%clk 0:04:46.4]} 6. Nxc3 {[%clk 0:04:26.9]} 6... d6 {[%clk 0:04:44.9]} 7.
O-O {[%clk 0:04:24.7]} 7... a6 {[%clk 0:04:43.9]} 8. Nd5 {[%clk 0:04:15.5]} 8...
e6 {[%clk 0:04:37.9]} 9. Nxf6+ {[%clk 0:04:13.5]} 9... Qxf6 {[%clk 0:04:36.8]}
10. Bg5 {[%clk 0:04:05.8]} 10... Qg6 {[%clk 0:04:35.7]} 11. Bh4 {[%clk
0:03:56.3]} 11... Be7 {[%clk 0:04:27.6]} 12. Bg3 {[%clk 0:03:52.6]} 12... e5
{[%clk 0:04:23.2]} 13. h3 {[%clk 0:03:47.3]} 13... O-O {[%clk 0:04:21.1]} 14.
Qe2 {[%clk 0:03:36.6]} 14... Kh8 {[%clk 0:04:18.7]} 15. Rac1 {[%clk 0:03:30]}
15... f5 {[%clk 0:04:16.2]} 16. Rfe1 {[%clk 0:03:08.1]} 16... f4 {[%clk
0:04:11]} 17. Bh2 {[%clk 0:03:03.7]} 17... Bxh3 {[%clk 0:04:07.8]} 18. g3 {[%clk
0:02:36.9]} 18... Bg4 {[%clk 0:04:05.9]} 19. Qf1 {[%clk 0:01:28.4]} 19... Bxf3
{[%clk 0:04:04]} 20. Be2 {[%clk 0:01:09.4]} 20... fxg3 {[%clk 0:03:59.3]} 21.
Bxg3 {[%clk 0:01:00.2]} 21... Nd4 {[%clk 0:03:57.6]} 22. Bxf3 {[%clk 0:00:57.2]}
22... Nxf3+ {[%clk 0:03:56.2]} 23. Kg2 {[%clk 0:00:39.1]} 23... Nxe1+ {[%clk
0:03:54.5]} 24. Rxe1 {[%clk 0:00:38.7]} 24... Bh4 {[%clk 0:03:53.2]} 25. Qh1
{[%clk 0:00:30.9]} 25... Bxg3 {[%clk 0:03:50.9]} 26. fxg3 {[%clk 0:00:29]} 26...
Qf6 {[%clk 0:03:48.5]} 27. Rf1 {[%clk 0:00:24.6]} 27... Qxf1+ {[%clk 0:03:46.6]}
28. Qxf1 {[%clk 0:00:21.9]} 28... Rxf1 {[%clk 0:03:46.1]} 29. Kxf1 {[%clk
0:00:20]} 29... Rc8 {[%clk 0:03:45.3]} 30. Kg2 {[%clk 0:00:17.4]} 30... Rc2+
{[%clk 0:03:42.9]} 31. Kh3 {[%clk 0:00:16.8]} 31... Rxb2 {[%clk 0:03:42.8]} 32.
Kh4 {[%clk 0:00:14.7]} 32... Rxa2 {[%clk 0:03:42.7]} 33. g4 {[%clk 0:00:13.6]}
33... Rf2 {[%clk 0:03:41.7]} 34. Kh5 {[%clk 0:00:12.6]} 34... a5 {[%clk
0:03:40.7]} 35. g5 {[%clk 0:00:03.2]} 35... Rf4 {[%clk 0:03:38.5]} 0-1

[Event "Live Chess"]
[Site "Chess.com"]
[Date "2023.05.20"]
[Round "-"]
[White "AttackingSnowLeopard"]
[Black "Driftboard"]
[Result "1-0"]
[WhiteElo "2049"]
[BlackElo "691"]
[TimeControl "300"]
[EndTime "11:24:25 PDT"]
[Termination "AttackingSnowLeopard won by checkmate"]

1. Nf3 {[%clk 0:04:57.6]} 1... d5 {[%clk 0:04:58.3]} 2. d4 {[%clk 0:04:56.3]}
2... Nc6 {[%clk 0:04:57]} 3. Bf4 {[%clk 0:04:55.9]} 3... Nf6 {[%clk 0:04:56.3]}
4. e3 {[%clk 0:04:55.4]} 4... Bf5 {[%clk 0:04:55.7]} 5. c3 {[%clk 0:04:54.9]}
5... e6 {[%clk 0:04:54.9]} 6. Nbd2 {[%clk 0:04:54.6]} 6... Bd6 {[%clk
0:04:53.4]} 7. Be2 {[%clk 0:04:54.2]} 7... Bxf4 {[%clk 0:04:51.4]} 8. exf4
{[%clk 0:04:54.1]} 8... O-O {[%clk 0:04:50.5]} 9. O-O {[%clk 0:04:53.4]} 9... h6
{[%clk 0:04:49.9]} 10. g3 {[%clk 0:04:51.8]} 10... Re8 {[%clk 0:04:49]} 11. Ne5
{[%clk 0:04:51.4]} 11... Nxe5 {[%clk 0:04:47.4]} 12. fxe5 {[%clk 0:04:50.4]}
12... Ne4 {[%clk 0:04:46]} 13. Nb3 {[%clk 0:04:44.1]} 13... f6 {[%clk
0:04:40.2]} 14. f3 {[%clk 0:04:42.7]} 14... Ng5 {[%clk 0:04:36.7]} 15. h4 {[%clk
0:04:41.7]} 15... Nf7 {[%clk 0:04:34.2]} 16. f4 {[%clk 0:04:39.9]} 16... fxe5
{[%clk 0:04:32.8]} 17. fxe5 {[%clk 0:04:39]} 17... Bh3 {[%clk 0:04:30.6]} 18.
Rf2 {[%clk 0:04:37.2]} 18... Bf5 {[%clk 0:04:27.8]} 19. Bg4 {[%clk 0:04:32.5]}
19... Bxg4 {[%clk 0:04:26.6]} 20. Qxg4 {[%clk 0:04:31]} 20... c6 {[%clk
0:04:18.9]} 21. Nc5 {[%clk 0:04:29.2]} 21... Qc7 {[%clk 0:04:14.5]} 22. Nxe6
{[%clk 0:04:27.3]} 22... Rxe6 {[%clk 0:04:07.4]} 23. Qxe6 {[%clk 0:04:25.8]}
23... Rf8 {[%clk 0:04:01.1]} 24. Raf1 {[%clk 0:04:24.1]} 24... b6 {[%clk
0:03:41.7]} 25. a4 {[%clk 0:04:21.9]} 25... a6 {[%clk 0:03:40.1]} 26. b4 {[%clk
0:04:20.2]} 26... b5 {[%clk 0:03:37]} 27. axb5 {[%clk 0:04:18.5]} 27... axb5
{[%clk 0:03:35.9]} 28. Kh2 {[%clk 0:04:18.1]} 28... g5 {[%clk 0:03:27.8]} 29.
Qg6+ {[%clk 0:04:16.1]} 29... Kh8 {[%clk 0:03:23.1]} 30. Rxf7 {[%clk 0:04:15.6]}
30... Rxf7 {[%clk 0:03:21.9]} 31. Rxf7 {[%clk 0:04:13.7]} 31... Qxf7 {[%clk
0:03:20.4]} 32. Qxf7 {[%clk 0:04:12.8]} 32... gxh4 {[%clk 0:03:17.9]} 33. e6
{[%clk 0:04:11.5]} 33... hxg3+ {[%clk 0:03:16]} 34. Kg1 {[%clk 0:04:11.2]} 34...
h5 {[%clk 0:03:14.5]} 35. e7 {[%clk 0:04:10.3]} 35... h4 {[%clk 0:03:13.3]} 36.
e8=Q# {[%clk 0:04:09.6]} 1-0

[Event "Live Chess"]
[Site "Chess.com"]
[Date "2023.05.20"]
[Round "-"]
[White "xx_blindpuffin_xx"]
[Black "alexlines8"]
[Result "1-0"]
[WhiteElo "2193"]
[BlackElo "1257"]
[TimeControl "300"]
[EndTime "11:24:29 PDT"]
[Termination "xx_blindpuffin_xx won by checkmate"]

1. d4 {[%clk 0:04:58.9]} 1... Nf6 {[%clk 0:04:57.8]} 2. Bf4 {[%clk 0:04:58]}
2... d5 {[%clk 0:04:56]} 3. e3 {[%clk 0:04:56.9]} 3... c5 {[%clk 0:04:54.5]} 4.
c3 {[%clk 0:04:55.6]} 4... cxd4 {[%clk 0:04:52.9]} 5. exd4 {[%clk 0:04:53.8]}
5... Nc6 {[%clk 0:04:52.5]} 6. Nf3 {[%clk 0:04:52.8]} 6... Bg4 {[%clk
0:04:51.2]} 7. Be2 {[%clk 0:04:51.6]} 7... e6 {[%clk 0:04:50.3]} 8. O-O {[%clk
0:04:48.2]} 8... Bxf3 {[%clk 0:04:47.7]} 9. Bxf3 {[%clk 0:04:48.1]} 9... Bd6
{[%clk 0:04:45.9]} 10. Bxd6 {[%clk 0:04:43.9]} 10... Qxd6 {[%clk 0:04:45.8]} 11.
Nd2 {[%clk 0:04:41.8]} 11... O-O {[%clk 0:04:43.6]} 12. Re1 {[%clk 0:04:40.8]}
12... Rfe8 {[%clk 0:04:39.7]} 13. Qb3 {[%clk 0:04:09.4]} 13... b6 {[%clk
0:04:32.7]} 14. g3 {[%clk 0:04:02.5]} 14... Rab8 {[%clk 0:04:26.6]} 15. Rad1
{[%clk 0:03:38.3]} 15... a5 {[%clk 0:04:23.6]} 16. Be2 {[%clk 0:03:34.5]} 16...
e5 {[%clk 0:04:12.3]} 17. dxe5 {[%clk 0:03:31.5]} 17... Nxe5 {[%clk 0:04:08.4]}
18. Nf3 {[%clk 0:03:20.8]} 18... Nxf3+ {[%clk 0:04:04.4]} 19. Bxf3 {[%clk
0:03:20.7]} 19... Rxe1+ {[%clk 0:04:03.2]} 20. Rxe1 {[%clk 0:03:20.6]} 20... g6
{[%clk 0:03:51.8]} 21. Rd1 {[%clk 0:03:13.3]} 21... Rd8 {[%clk 0:03:28.1]} 22.
Rd4 {[%clk 0:03:09.3]} 22... Qc5 {[%clk 0:03:17.1]} 23. Kg2 {[%clk 0:03:04.3]}
23... Kg7 {[%clk 0:03:13.1]} 24. Qd1 {[%clk 0:02:56.3]} 24... Rd6 {[%clk
0:03:02.1]} 25. c4 {[%clk 0:02:50.7]} 25... Rd8 {[%clk 0:02:48.7]} 26. cxd5
{[%clk 0:02:43.3]} 26... Qb5 {[%clk 0:02:33.3]} 27. b3 {[%clk 0:02:39.3]} 27...
Rd6 {[%clk 0:02:25.9]} 28. Qd2 {[%clk 0:02:36.3]} 28... Ne8 {[%clk 0:02:10.5]}
29. Qf4 {[%clk 0:02:28.9]} 29... Qd7 {[%clk 0:02:05.1]} 30. h4 {[%clk
0:02:20.9]} 30... Qf5 {[%clk 0:01:59.3]} 31. Qd2 {[%clk 0:02:01.2]} 31... Nf6
{[%clk 0:01:49.7]} 32. g4 {[%clk 0:01:55.6]} 32... Qd7 {[%clk 0:01:45.5]} 33. g5
{[%clk 0:01:53.7]} 33... Ne8 {[%clk 0:01:43.4]} 34. Bg4 {[%clk 0:01:47.4]} 34...
Qc7 {[%clk 0:01:36.6]} 35. Rc4 {[%clk 0:01:44.6]} 35... Qd8 {[%clk 0:01:34.1]}
36. Rc8 {[%clk 0:01:35]} 36... Qe7 {[%clk 0:01:28.2]} 37. Qd4+ {[%clk 0:01:30]}
37... Kg8 {[%clk 0:01:25.2]} 38. Bf3 {[%clk 0:00:58]} 38... Qd7 {[%clk
0:01:11.1]} 39. Rc1 {[%clk 0:00:52.3]} 39... Nc7 {[%clk 0:01:03]} 40. Qe5 {[%clk
0:00:37.9]} 40... Nxd5 {[%clk 0:00:55]} 41. Rd1 {[%clk 0:00:36.5]} 41... Qe6
{[%clk 0:00:48.7]} 42. Rxd5 {[%clk 0:00:33.1]} 42... Rxd5 {[%clk 0:00:41.7]} 43.
Qxd5 {[%clk 0:00:32.2]} 43... Qxd5 {[%clk 0:00:41.4]} 44. Bxd5 {[%clk
0:00:32.1]} 44... Kf8 {[%clk 0:00:40.7]} 45. a4 {[%clk 0:00:31.3]} 45... Ke7
{[%clk 0:00:39.9]} 46. Bc4 {[%clk 0:00:31.2]} 46... Kd6 {[%clk 0:00:38.7]} 47.
Bb5 {[%clk 0:00:31.1]} 47... Kc5 {[%clk 0:00:37.6]} 48. Kf3 {[%clk 0:00:31]}
48... Kb4 {[%clk 0:00:36.5]} 49. Bc4 {[%clk 0:00:30.9]} 49... Kc5 {[%clk
0:00:34]} 50. Bxf7 {[%clk 0:00:29.6]} 50... Kb4 {[%clk 0:00:32.6]} 51. Bg8
{[%clk 0:00:29]} 51... Kc3 {[%clk 0:00:30.5]} 52. Ke3 {[%clk 0:00:28.3]} 52...
Kc2 {[%clk 0:00:29.3]} 53. Kd4 {[%clk 0:00:27.5]} 53... Kb2 {[%clk 0:00:28.5]}
54. Kc4 {[%clk 0:00:26.3]} 54... Kc2 {[%clk 0:00:27.1]} 55. Bxh7 {[%clk
0:00:25.5]} 55... Kd2 {[%clk 0:00:24.6]} 56. Bxg6 {[%clk 0:00:24.9]} 56... Ke2
{[%clk 0:00:24.5]} 57. h5 {[%clk 0:00:24.4]} 57... Kxf2 {[%clk 0:00:23.6]} 58.
h6 {[%clk 0:00:24.3]} 58... Kg2 {[%clk 0:00:23]} 59. h7 {[%clk 0:00:24.2]} 59...
Kf3 {[%clk 0:00:22.2]} 60. h8=Q {[%clk 0:00:24]} 60... b5+ {[%clk 0:00:21.7]}
61. axb5 {[%clk 0:00:22.5]} 61... Kf4 {[%clk 0:00:20.7]} 62. Qf6+ {[%clk
0:00:21.5]} 62... Kg4 {[%clk 0:00:19.5]} 63. Bc2 {[%clk 0:00:20.3]} 63... Kg3
{[%clk 0:00:18.4]} 64. g6 {[%clk 0:00:19.8]} 64... a4 {[%clk 0:00:17.6]} 65. g7
{[%clk 0:00:19.7]} 65... axb3 {[%clk 0:00:16.3]} 66. g8=Q+ {[%clk 0:00:18.7]}
66... Kh2 {[%clk 0:00:14.5]} 67. Qfh8# {[%clk 0:00:18.6]} 1-0

[Event "Live Chess"]
[Site "Chess.com"]
[Date "2023.05.20"]
[Round "-"]
[White "Tilbs_12"]
[Black "MrDodgy"]
[Result "0-1"]
[WhiteElo "1576"]
[BlackElo "2316"]
[TimeControl "300"]
[EndTime "11:24:39 PDT"]
[Termination "MrDodgy won by resignation"]

1. e4 {[%clk 0:04:58.5]} 1... c5 {[%clk 0:04:57.2]} 2. c3 {[%clk 0:04:56.9]}
2... Nf6 {[%clk 0:04:55.5]} 3. e5 {[%clk 0:04:55.6]} 3... Nd5 {[%clk 0:04:54.9]}
4. d4 {[%clk 0:04:54.9]} 4... cxd4 {[%clk 0:04:53.9]} 5. cxd4 {[%clk 0:04:54.1]}
5... Nc6 {[%clk 0:04:53.2]} 6. Nc3 {[%clk 0:04:52.5]} 6... e6 {[%clk 0:04:51]}
7. Nxd5 {[%clk 0:04:48.8]} 7... exd5 {[%clk 0:04:49.8]} 8. Nf3 {[%clk
0:04:48.4]} 8... d6 {[%clk 0:04:49.3]} 9. a3 {[%clk 0:04:23.8]} 9... dxe5 {[%clk
0:04:45.1]} 10. dxe5 {[%clk 0:04:22.3]} 10... Bc5 {[%clk 0:04:43.3]} 11. Bd3
{[%clk 0:04:11.8]} 11... Bg4 {[%clk 0:04:33.2]} 12. Bf4 {[%clk 0:04:05.2]} 12...
O-O {[%clk 0:04:22.2]} 13. O-O {[%clk 0:03:56.4]} 13... Re8 {[%clk 0:04:19.8]}
14. Re1 {[%clk 0:03:54.8]} 14... Qb6 {[%clk 0:04:04.9]} 15. Be3 {[%clk
0:03:38.8]} 15... Nxe5 {[%clk 0:03:56.7]} 16. Bxc5 {[%clk 0:03:20.7]} 16... Qxc5
{[%clk 0:03:50]} 17. Rxe5 {[%clk 0:03:01.6]} 17... Rxe5 {[%clk 0:03:45.6]} 18.
Qd2 {[%clk 0:02:28.9]} 18... Bxf3 {[%clk 0:03:31.1]} 19. gxf3 {[%clk 0:02:27.5]}
19... Rae8 {[%clk 0:03:30.3]} 20. Kg2 {[%clk 0:02:16.3]} 20... Qe7 {[%clk
0:03:18.9]} 21. f4 {[%clk 0:02:07.6]} 21... Rh5 {[%clk 0:03:08.8]} 22. Bb5
{[%clk 0:01:57.9]} 22... Rd8 {[%clk 0:02:55.7]} 23. Bd3 {[%clk 0:01:56.3]} 23...
Qh4 {[%clk 0:02:53.4]} 24. Rh1 {[%clk 0:01:51.7]} 24... Qh3+ {[%clk 0:02:46.7]}
25. Kg1 {[%clk 0:01:49.3]} 25... Rh4 {[%clk 0:02:46.2]} 26. Qe3 {[%clk
0:01:29.4]} 26... Rg4+ {[%clk 0:02:41.6]} 0-1

[Event "Live Chess"]
[Site "Chess.com"]
[Date "2023.05.20"]
[Round "-"]
[White "dudeasy"]
[Black "Tushinskiy"]
[Result "0-1"]
[WhiteElo "1159"]
[BlackElo "2116"]
[TimeControl "300"]
[EndTime "11:24:40 PDT"]
[Termination "Tushinskiy won by resignation"]

1. Nf3 {[%clk 0:04:57.2]} 1... d5 {[%clk 0:04:57.4]} 2. g3 {[%clk 0:04:53.8]}
2... c6 {[%clk 0:04:57.3]} 3. Bg2 {[%clk 0:04:51.8]} 3... Nf6 {[%clk 0:04:57.2]}
4. O-O {[%clk 0:04:49.7]} 4... Bg4 {[%clk 0:04:57.1]} 5. d3 {[%clk 0:04:46.9]}
5... Nbd7 {[%clk 0:04:55.8]} 6. Nbd2 {[%clk 0:04:45]} 6... e5 {[%clk 0:04:55]}
7. b3 {[%clk 0:04:42.2]} 7... Qc7 {[%clk 0:04:53.8]} 8. Bb2 {[%clk 0:04:40.1]}
8... Be7 {[%clk 0:04:53.1]} 9. c4 {[%clk 0:04:36.6]} 9... d4 {[%clk 0:04:50.9]}
10. Rc1 {[%clk 0:04:25.7]} 10... O-O {[%clk 0:04:48.5]} 11. e3 {[%clk
0:04:20.1]} 11... dxe3 {[%clk 0:04:46.9]} 12. fxe3 {[%clk 0:04:18.8]} 12... Rad8
{[%clk 0:04:46.3]} 13. Qc2 {[%clk 0:04:17.2]} 13... Bh5 {[%clk 0:04:43.6]} 14.
d4 {[%clk 0:04:13.4]} 14... Bg6 {[%clk 0:04:39.8]} 15. Qd1 {[%clk 0:04:09.5]}
15... exd4 {[%clk 0:04:37.6]} 16. exd4 {[%clk 0:04:08.1]} 16... a5 {[%clk
0:04:32.7]} 17. Kh1 {[%clk 0:04:03]} 17... Rfe8 {[%clk 0:04:30.2]} 18. d5 {[%clk
0:03:38.2]} 18... cxd5 {[%clk 0:04:24.8]} 19. cxd5 {[%clk 0:03:34.4]} 19... Qb8
{[%clk 0:04:23.5]} 20. Nh4 {[%clk 0:03:24.5]} 20... Ne5 {[%clk 0:04:12.5]} 21.
Nc4 {[%clk 0:03:14.8]} 21... Nxc4 {[%clk 0:04:03.9]} 22. bxc4 {[%clk 0:03:11.9]}
22... Qa7 {[%clk 0:03:44.1]} 23. Qb3 {[%clk 0:03:05.8]} 23... a4 {[%clk
0:03:37.6]} 24. Qc3 {[%clk 0:02:50]} 24... a3 {[%clk 0:03:32.9]} 25. Ba1 {[%clk
0:02:46.6]} 25... Qc5 {[%clk 0:03:23.8]} 26. Nf5 {[%clk 0:02:36.3]} 26... Bxf5
{[%clk 0:03:21.1]} 27. Rxf5 {[%clk 0:02:33.9]} 27... b5 {[%clk 0:03:17.6]} 28.
cxb5 {[%clk 0:02:30.3]} 28... Qxb5 {[%clk 0:03:14.8]} 29. Rcf1 {[%clk
0:02:18.5]} 29... Rd6 {[%clk 0:03:03.4]} 30. Qd2 {[%clk 0:01:52.2]} 30... Red8
{[%clk 0:02:37.4]} 31. Be5 {[%clk 0:01:47.1]} 31... Rxd5 {[%clk 0:02:32.4]} 32.
Qf4 {[%clk 0:01:40.1]} 32... Nh5 {[%clk 0:02:17.8]} 33. Rxh5 {[%clk 0:01:35.7]}
33... f6 {[%clk 0:02:12.7]} 34. Bxd5+ {[%clk 0:01:32.1]} 34... Qxd5+ {[%clk
0:02:11.3]} 35. Qf3 {[%clk 0:01:26.2]} 35... fxe5 {[%clk 0:02:09.3]} 36. Qxd5+
{[%clk 0:01:22.5]} 36... Rxd5 {[%clk 0:02:09.2]} 37. Rf2 {[%clk 0:01:19.1]}
37... g6 {[%clk 0:02:04.9]} 38. Rh4 {[%clk 0:01:16.4]} 38... Bxh4 {[%clk
0:02:03.3]} 39. gxh4 {[%clk 0:01:15.4]} 39... Rd1+ {[%clk 0:02:01.6]} 40. Kg2
{[%clk 0:01:13.4]} 40... Rb1 {[%clk 0:02:00.9]} 41. Re2 {[%clk 0:01:09.4]} 41...
Rb2 {[%clk 0:01:59]} 42. Rxb2 {[%clk 0:01:05]} 42... axb2 {[%clk 0:01:57.9]} 0-1

[Event "Live Chess"]
[Site "Chess.com"]
[Date "2023.05.20"]
[Round "-"]
[White "aliciabutteriss"]
[Black "18Ziyad"]
[Result "1-0"]
[WhiteElo "574"]
[BlackElo "902"]
[TimeControl "300"]
[EndTime "11:25:01 PDT"]
[Termination "aliciabutteriss won by checkmate"]

1. e4 {[%clk 0:04:58.9]} 1... c5 {[%clk 0:04:57.1]} 2. Nf3 {[%clk 0:04:48]} 2...
Nc6 {[%clk 0:04:55.7]} 3. Nc3 {[%clk 0:04:46.1]} 3... g6 {[%clk 0:04:53.4]} 4.
d3 {[%clk 0:04:40.6]} 4... Bg7 {[%clk 0:04:53.3]} 5. Be3 {[%clk 0:04:30.8]} 5...
d6 {[%clk 0:04:50]} 6. d4 {[%clk 0:04:26.2]} 6... cxd4 {[%clk 0:04:46.6]} 7.
Nxd4 {[%clk 0:04:23.5]} 7... Qb6 {[%clk 0:04:43.4]} 8. Nxc6 {[%clk 0:04:15.4]}
8... Qxc6 {[%clk 0:04:40.3]} 9. Bb5 {[%clk 0:04:01.4]} 9... Qxb5 {[%clk
0:04:32.6]} 10. Nxb5 {[%clk 0:03:59.4]} 10... Kd7 {[%clk 0:04:31.9]} 11. O-O
{[%clk 0:03:47]} 11... e6 {[%clk 0:04:29.3]} 12. Qd4 {[%clk 0:03:33.1]} 12...
Bxd4 {[%clk 0:04:25.2]} 13. Bxd4 {[%clk 0:03:31.1]} 13... e5 {[%clk 0:04:21.3]}
14. Be3 {[%clk 0:03:18.3]} 14... Ne7 {[%clk 0:04:19.2]} 15. Rad1 {[%clk
0:03:17]} 15... a6 {[%clk 0:04:10.9]} 16. Rxd6+ {[%clk 0:03:11.5]} 16... Ke8
{[%clk 0:04:07.2]} 17. Nc7+ {[%clk 0:03:07.6]} 17... Kf8 {[%clk 0:04:05]} 18.
Nxa8 {[%clk 0:03:06]} 18... Be6 {[%clk 0:04:03]} 19. Rd8+ {[%clk 0:02:57.8]}
19... Kg7 {[%clk 0:04:01.7]} 20. Bh6+ {[%clk 0:02:50]} 20... Kxh6 {[%clk
0:03:54.8]} 21. Rxh8 {[%clk 0:02:48.1]} 21... f5 {[%clk 0:03:41.2]} 22. Re8
{[%clk 0:02:38.1]} 22... Bxa2 {[%clk 0:03:06.4]} 23. Rxe7 {[%clk 0:02:31.4]}
23... Bc4 {[%clk 0:03:03.5]} 24. Rd1 {[%clk 0:02:24.2]} 24... fxe4 {[%clk
0:02:59.2]} 25. Nb6 {[%clk 0:02:22.3]} 25... Be2 {[%clk 0:02:51.9]} 26. Rd4
{[%clk 0:02:14.3]} 26... Bb5 {[%clk 0:02:30.4]} 27. Rxe4 {[%clk 0:02:10.4]}
27... Bc6 {[%clk 0:02:29]} 28. R4xe5 {[%clk 0:02:03.9]} 28... Bb5 {[%clk
0:02:13.8]} 29. h4 {[%clk 0:01:56.5]} 29... Bc6 {[%clk 0:02:09.3]} 30. g4 {[%clk
0:01:50.1]} 30... g5 {[%clk 0:02:07.7]} 31. R5e6# {[%clk 0:01:45.3]} 1-0

[Event "Live Chess"]
[Site "Chess.com"]
[Date "2023.05.20"]
[Round "-"]
[White "mightysmasher"]
[Black "alanmike75"]
[Result "1-0"]
[WhiteElo "2133"]
[BlackElo "1509"]
[TimeControl "300"]
[EndTime "11:25:07 PDT"]
[Termination "mightysmasher won by resignation"]

1. e4 {[%clk 0:04:57]} 1... e5 {[%clk 0:04:58.8]} 2. Nf3 {[%clk 0:04:56]} 2...
Nc6 {[%clk 0:04:57.6]} 3. d4 {[%clk 0:04:55.3]} 3... exd4 {[%clk 0:04:55.4]} 4.
Nxd4 {[%clk 0:04:54.4]} 4... Nf6 {[%clk 0:04:52.4]} 5. Nc3 {[%clk 0:04:53]} 5...
Bc5 {[%clk 0:04:51.1]} 6. Be3 {[%clk 0:04:50.8]} 6... O-O {[%clk 0:04:49.6]} 7.
Nxc6 {[%clk 0:04:49.1]} 7... Bxe3 {[%clk 0:04:35.7]} 8. Nxd8 {[%clk 0:04:47]}
8... Bxf2+ {[%clk 0:04:34.4]} 9. Kxf2 {[%clk 0:04:46.3]} 9... Rxd8 {[%clk
0:04:32.9]} 10. e5 {[%clk 0:04:45.8]} 10... Ng4+ {[%clk 0:04:25.6]} 11. Qxg4
{[%clk 0:04:44.3]} 11... d5 {[%clk 0:04:24.6]} 12. Qg3 {[%clk 0:04:42.6]} 12...
d4 {[%clk 0:04:23.1]} 13. Ne4 {[%clk 0:04:41.9]} 13... d3 {[%clk 0:04:21.9]} 14.
Bxd3 {[%clk 0:04:40.7]} 14... Rxd3 {[%clk 0:04:20.6]} 15. Qxd3 {[%clk
0:04:38.6]} 1-0

[Event "Live Chess"]
[Site "Chess.com"]
[Date "2023.05.20"]
[Round "-"]
[White "OleksiyJr1"]
[Black "ViktorTheCoolBoy"]
[Result "0-1"]
[WhiteElo "909"]
[BlackElo "2543"]
[TimeControl "300"]
[EndTime "11:25:08 PDT"]
[Termination "ViktorTheCoolBoy won by resignation"]

1. e4 {[%clk 0:04:57.5]} 1... g6 {[%clk 0:04:55.2]} 2. Nc3 {[%clk 0:04:41.2]}
2... Bg7 {[%clk 0:04:53]} 3. Nf3 {[%clk 0:04:38.5]} 3... d6 {[%clk 0:04:41.5]}
4. d4 {[%clk 0:04:35.5]} 4... a6 {[%clk 0:04:35.7]} 5. Be3 {[%clk 0:04:22.5]}
5... b5 {[%clk 0:04:33.2]} 6. a3 {[%clk 0:04:19.5]} 6... Nd7 {[%clk 0:04:31.5]}
7. Bd3 {[%clk 0:04:18.2]} 7... Bb7 {[%clk 0:04:26]} 8. Kf1 {[%clk 0:04:14]} 8...
e6 {[%clk 0:04:20.6]} 9. d5 {[%clk 0:04:05.5]} 9... e5 {[%clk 0:04:12.6]} 10. g3
{[%clk 0:04:02.3]} 10... h6 {[%clk 0:04:10.6]} 11. Kg2 {[%clk 0:04:01.6]} 11...
Ne7 {[%clk 0:04:07.4]} 12. Re1 {[%clk 0:03:46]} 12... O-O {[%clk 0:04:03.9]} 13.
Kg1 {[%clk 0:03:43.2]} 13... c6 {[%clk 0:04:02.7]} 14. dxc6 {[%clk 0:03:34.8]}
14... Bxc6 {[%clk 0:04:02.6]} 15. b4 {[%clk 0:03:33.9]} 15... Rc8 {[%clk
0:03:57.8]} 16. Ne2 {[%clk 0:03:29.7]} 16... d5 {[%clk 0:03:52.4]} 17. Nd2
{[%clk 0:03:24.1]} 17... d4 {[%clk 0:03:50.3]} 0-1